bitfinex/quotes_BTCUSD_20250826
["timestamp","ask_amount","ask_price","bid_price","bid_amount"]
[1756195047682,0.18106101,110460.0,110450.0,0.18904741]
[1756195047897,0.18106101,110460.0,110450.0,0.34628741]
[1756195048103,0.18106101,110460.0,110450.0,0.34428741]
[1756195048751,0.33830101,110460.0,110450.0,0.34328741]
[1756195049174,0.15724,110460.0,110450.0,0.34528741]
[1756195049569,0.33830101,110460.0,110450.0,0.94618806]
[1756195049714,0.18106101,110460.0,110450.0,0.34628741]
[1756195051766,0.18106101,110460.0,110450.0,0.94718806]
[1756195053144,0.18106101,110460.0,110450.0,0.34628741]
[1756195053347,0.18106101,110460.0,110450.0,0.94718806]
[1756195055340,0.33832448,110470.0,110460.0,0.18106101]
[1756195055550,0.33832448,110470.0,110460.0,0.18603101]
[1756195056344,0.18108448,110470.0,110460.0,0.18603101]
[1756195056546,0.34020448,110470.0,110460.0,0.00497]
[1756195056726,0.34020448,110470.0,110460.0,0.18603101]
[1756195057615,0.34020448,110470.0,110460.0,0.00497]
[1756195058255,0.34020448,110470.0,110460.0,0.18603101]
[1756195058458,0.33828448,110470.0,110460.0,0.18603101]
[1756195059000,0.18108448,110470.0,110460.0,0.18603101]
[1756195059199,0.33828448,110470.0,110460.0,0.18603101]
[1756195060176,0.34020448,110470.0,110460.0,0.00497]
[1756195060290,0.18300448,110470.0,110460.0,0.00497]
[1756195060496,0.34020448,110470.0,110460.0,0.00497]
[1756195061391,0.18300448,110470.0,110460.0,0.18603101]
[1756195061596,0.34020448,110470.0,110460.0,0.18603101]
[1756195062229,0.18300448,110470.0,110460.0,0.18603101]
[1756195062405,0.34016448,110470.0,110460.0,0.18603101]
[1756195063846,0.18300448,110470.0,110460.0,0.18603101]
[1756195064024,0.34016448,110470.0,110460.0,0.18603101]
[1756195064574,0.18300448,110470.0,110460.0,0.18603101]
[1756195064777,0.34016448,110470.0,110460.0,0.00497]
[1756195065241,0.34016448,110470.0,110460.0,0.18603101]
[1756195066452,0.18300448,110470.0,110460.0,0.18603101]
[1756195066657,0.18108448,110470.0,110460.0,0.18603101]
[1756195066839,0.33824448,110470.0,110460.0,0.18603101]
[1756195067794,0.18108448,110470.0,110460.0,0.18603101]
[1756195067971,0.15716,110470.0,110460.0,0.18603101]
[1756195069013,0.33820462,110470.0,110460.0,0.18603101]
[1756195069220,0.26356627,110470.0,110460.0,0.18603101]
[1756195070373,0.18106101,110460.0,110450.0,0.18400741]
[1756195070583,0.18115101,110460.0,110450.0,0.34316741]
[1756195070920,0.18106101,110460.0,110450.0,0.34316741]
[1756195071599,0.18106101,110460.0,110450.0,0.34416741]
[1756195072286,0.26356627,110470.0,110450.0,0.34616741]
[1756195072518,0.18106101,110460.0,110450.0,0.34616741]
[1756195073619,0.18106101,110460.0,110450.0,0.34412741]
[1756195073620,0.18115101,110460.0,110450.0,0.34412741]
[1756195075049,0.18115101,110460.0,110450.0,0.34616741]
[1756195075509,0.18106101,110460.0,110450.0,0.34616741]
[1756195080606,0.26348627,110470.0,110460.0,0.18106101]
[1756195080831,0.26537627,110470.0,110460.0,0.18613101]
[1756195081290,0.26537627,110470.0,110460.0,0.00507]
[1756195081508,0.26537627,110470.0,110460.0,0.18613101]
[1756195081697,0.26537627,110470.0,110460.0,0.00507]
[1756195082875,0.26537627,110470.0,110460.0,0.18613101]
[1756195083059,0.26537627,110470.0,110460.0,0.00507]
[1756195083502,0.26537627,110470.0,110460.0,0.00305]
[1756195084119,0.26537627,110470.0,110460.0,0.00507]
[1756195084797,0.26537627,110470.0,110460.0,0.18613101]
[1756195085035,0.10644627,110470.0,110460.0,0.18613101]
[1756195085242,0.54824824,110480.0,110470.0,0.18104462]
[1756195085452,0.54824824,110480.0,110470.0,0.18306462]
[1756195085453,0.34652524,110480.0,110470.0,0.18306462]
[1756195085654,0.34652524,110480.0,110470.0,0.18611462]
[1756195085866,0.18952524,110480.0,110470.0,0.18611462]
[1756195086070,0.18952524,110480.0,110470.0,0.78701527]
[1756195086297,0.18952531,110480.0,110470.0,0.78701527]
[1756195086508,0.18302824,110480.0,110470.0,0.18616226]
[1756195086711,0.18394824,110480.0,110470.0,4.764e-05]
[1756195086916,0.79454351,110480.0,110470.0,4.764e-05]
[1756195087143,0.79354351,110480.0,110470.0,0.00204764]
[1756195087399,0.8849888,110480.0,110470.0,0.00204764]
[1756195087610,0.8849888,110480.0,110470.0,0.00304764]
[1756195087880,0.904577,110480.0,110470.0,0.00304764]
[1756195088087,0.9279373,110480.0,110470.0,0.00304764]
[1756195088732,1.86883795,110480.0,110470.0,0.00304764]
[1756195090018,1.86883795,110480.0,110470.0,0.00204764]
[1756195090219,1.86983795,110480.0,110470.0,4.764e-05]
[1756195090340,1.87083795,110480.0,110470.0,4.764e-05]
[1756195092079,1.2971603,110480.0,110470.0,4.764e-05]
[1756195092713,1.91550997,110480.0,110470.0,4.764e-05]
[1756195092947,2.05797424,110480.0,110470.0,4.764e-05]
[1756195093399,1.99900655,110480.0,110470.0,4.764e-05]
[1756195094439,1.9724582,110480.0,110470.0,4.764e-05]
[1756195094646,0.87649028,110480.0,110470.0,4.764e-05]
[1756195094857,1.47739093,110480.0,110470.0,4.764e-05]
[1756195095707,0.87646605,110480.0,110470.0,4.764e-05]
[1756195095930,1.4773667,110480.0,110470.0,4.764e-05]
[1756195096135,1.46887847,110480.0,110470.0,4.764e-05]
[1756195096348,1.47736664,110480.0,110470.0,4.764e-05]
[1756195098233,0.71758599,110480.0,110470.0,0.00511764]
[1756195098455,1.47540664,110480.0,110470.0,0.00511764]
[1756195098684,1.45093601,110480.0,110470.0,0.00511764]
[1756195100797,1.43395967,110480.0,110470.0,0.00511764]
[1756195100987,1.45092992,110480.0,110470.0,0.00511764]
[1756195105356,1.42759039,110480.0,110470.0,0.00511764]
[1756195105569,1.45092416,110480.0,110470.0,0.00511764]
[1756195105986,1.45092471,110480.0,110470.0,0.00511764]
[1756195106920,1.45284471,110480.0,110470.0,0.00511764]
[1756195107934,1.45284471,110480.0,110470.0,0.00309764]
[1756195108138,1.45284471,110480.0,110470.0,0.00514764]
[1756195108341,1.45284471,110480.0,110470.0,4.764e-05]
[1756195108549,1.45284505,110480.0,110470.0,0.00304764]
[1756195108755,1.54549034,110480.0,110470.0,4.764e-05]
[1756195109793,1.54429228,110480.0,110470.0,4.764e-05]
[1756195110423,0.69502634,110480.0,110470.0,0.00209764]
[1756195110673,0.85186634,110480.0,110470.0,0.00509764]
[1756195110885,1.45084699,110480.0,110470.0,0.00509764]
[1756195111321,0.69310634,110480.0,110470.0,0.00509764]
[1756195111533,1.45084699,110480.0,110470.0,0.00509764]
[1756195112156,1.29400699,110480.0,110470.0,0.00509764]
[1756195112330,1.45084699,110480.0,110470.0,0.00509764]
[1756195113336,1.44448267,110480.0,110470.0,0.00509764]
[1756195114699,1.28764267,110480.0,110470.0,0.00509764]
[1756195114915,1.41898538,110480.0,110470.0,0.00509764]
[1756195115093,1.44444422,110480.0,110470.0,0.00509764]
[1756195115455,0.59528155,110480.0,110470.0,0.00509764]
[1756195115663,0.73510899,110480.0,110470.0,0.00509764]
[1756195115870,0.75208279,110480.0,110470.0,0.00509764]
[1756195116247,0.75108279,110480.0,110470.0,0.00509764]
[1756195116444,0.75106693,110480.0,110470.0,0.00509764]
[1756195116649,0.75006693,110480.0,110470.0,0.00509764]
[1756195117095,0.75006693,110480.0,110470.0,0.00609764]
[1756195117274,0.73309313,110480.0,110470.0,0.00609764]
[1756195117487,1.31443817,110480.0,110470.0,0.00609764]
[1756195117683,1.31451817,110480.0,110470.0,0.00404764]
[1756195117885,1.31451817,110480.0,110470.0,0.00609764]
[1756195119461,0.55673752,110480.0,110470.0,0.00609764]
[1756195119668,0.71349752,110480.0,110470.0,0.00609764]
[1756195121114,1.31439817,110480.0,110470.0,0.00609764]
[1756195123517,2.02943532,110480.0,110470.0,0.00104764]
[1756195123732,2.07932216,110480.0,110470.0,0.00104764]
[1756195124140,2.09677118,110480.0,110470.0,0.00104764]
[1756195124346,2.07979783,110480.0,110470.0,0.00104764]
[1756195124566,2.12122407,110480.0,110470.0,0.00104764]
[1756195124807,2.12122407,110480.0,110430.0,0.01527967]
[1756195124808,0.78199445,110440.0,110430.0,0.01527967]
[1756195125041,0.93871445,110440.0,110430.0,0.01780654]
[1756195125453,0.96594345,110440.0,110430.0,0.01780654]
[1756195127169,0.96594345,110440.0,110430.0,0.02280654]
[1756195127388,0.97481325,110440.0,110430.0,0.02280654]
[1756195129199,0.63699945,110440.0,110430.0,0.20391674]
[1756195129408,0.15672,110440.0,110430.0,0.20391674]
[1756195129852,0.80920648,110450.0,110440.0,0.1810938]
[1756195129853,0.81836135,110450.0,110440.0,0.1810938]
[1756195130058,0.97508135,110450.0,110440.0,0.1831438]
[1756195130283,0.97508135,110450.0,110440.0,0.1861438]
[1756195130502,0.03638187,110450.0,110440.0,0.1861438]
[1756195130720,0.19310187,110450.0,110440.0,0.1861438]
[1756195130951,0.03638187,110450.0,110440.0,0.1861438]
[1756195131182,0.19310187,110450.0,110440.0,0.1871438]
[1756195131401,0.19310187,110450.0,110440.0,0.1891438]
[1756195131947,0.027227,110450.0,110440.0,0.1891438]
[1756195132165,0.183947,110450.0,110440.0,0.1891438]
[1756195132383,0.027227,110450.0,110440.0,0.1891438]
[1756195133022,0.74738133,110460.0,110450.0,0.18107741]
[1756195133190,0.75585991,110460.0,110450.0,0.18312741]
[1756195133399,1.38445643,110460.0,110450.0,0.18612741]
[1756195133611,1.22773643,110460.0,110450.0,0.18612741]
[1756195133810,1.38445643,110460.0,110450.0,0.18612741]
[1756195134008,0.37617445,110460.0,110450.0,0.18612741]
[1756195134217,0.53289445,110460.0,110450.0,0.18612741]
[1756195134577,0.19289445,110460.0,110450.0,0.18612741]
[1756195134779,0.16566945,110460.0,110450.0,0.18612741]
[1756195135114,0.183943,110470.0,110460.0,0.18106101]
[1756195135321,0.05265554,110470.0,110460.0,0.18611101]
[1756195135486,0.20937554,110470.0,110460.0,0.18611101]
[1756195135851,0.183943,110470.0,110460.0,0.18611101]
[1756195136007,0.25979629,110480.0,110470.0,0.18104462]
[1756195136182,0.82869497,110480.0,110470.0,0.00213]
[1756195136386,0.82869508,110480.0,110470.0,0.00537]
[1756195136785,0.82869508,110480.0,110470.0,0.18641462]
[1756195137027,0.8091679,110480.0,110470.0,0.00537]
[1756195138010,0.8110879,110480.0,110470.0,0.00537]
[1756195138221,1.41198855,110480.0,110470.0,0.00324]
[1756195138665,1.41198855,110480.0,110470.0,0.00537]
[1756195139449,1.39503414,110480.0,110470.0,0.00537]
[1756195140325,1.39503373,110480.0,110470.0,0.00537]
[1756195140528,1.39503373,110480.0,110470.0,0.18641462]
[1756195140825,0.79221308,110480.0,110470.0,0.18641462]
[1756195141106,1.22791694,110480.0,110470.0,0.18641462]
[1756195141332,0.44598805,110480.0,110470.0,0.18641462]
[1756195141568,0.2145469,110510.0,110480.0,0.18102824]
[1756195141795,0.2145469,110510.0,110500.0,0.18099547]
[1756195141796,0.05142826,110510.0,110500.0,0.18099547]
[1756195142055,0.37221682,110510.0,110500.0,0.00213]
[1756195142298,0.37221682,110510.0,110490.0,0.18098267]
[1756195142299,0.18099547,110500.0,110490.0,0.18422267]
[1756195142508,1.2876936,110510.0,110500.0,0.18099547]
[1756195142720,1.32529246,110510.0,110490.0,0.18422267]
[1756195142945,1.29808146,110510.0,110500.0,0.00324]
[1756195143155,1.29808146,110510.0,110490.0,0.18098267]
[1756195143369,1.2896136,110510.0,110490.0,0.18422267]
[1756195143608,0.18099547,110500.0,110490.0,0.18622267]
[1756195143832,0.78189612,110500.0,110490.0,0.18635267]
[1756195144307,0.78189612,110500.0,110490.0,0.00537]
[1756195144542,0.18101185,110490.0,110480.0,0.18426824]
[1756195144766,0.75754065,110490.0,110480.0,0.18639824]
[1756195145407,0.15664,110490.0,110480.0,0.18639824]
[1756195145623,0.18099547,110500.0,110490.0,0.18101185]
[1756195145624,0.93853738,110500.0,110490.0,0.18101185]
[1756195145833,0.93853738,110500.0,110490.0,0.18514185]
[1756195146045,0.93853738,110500.0,110490.0,0.18838185]
[1756195146260,0.93853738,110500.0,110490.0,0.18938185]
[1756195146447,0.93853738,110500.0,110490.0,0.00837]
[1756195146895,0.93861738,110500.0,110490.0,0.18738185]
[1756195147972,0.93861738,110500.0,110490.0,0.001]
[1756195148197,0.33771673,110500.0,110490.0,0.001]
[1756195148420,0.93861738,110500.0,110490.0,0.001]
[1756195148981,0.93861738,110500.0,110490.0,0.003]
[1756195150876,0.93981738,110500.0,110490.0,0.003]
[1756195151327,0.93861738,110500.0,110490.0,0.003]
[1756195153037,0.5675739,110510.0,110490.0,0.08166699]
[1756195153038,0.5663739,110510.0,110490.0,0.08166699]
[1756195153255,0.5663739,110510.0,110500.0,0.18099547]
[1756195153256,0.74830557,110510.0,110500.0,0.18099547]
[1756195153472,0.75018557,110510.0,110500.0,0.18636547]
[1756195153675,0.18099547,110500.0,110490.0,0.00624]
[1756195153880,0.78381612,110500.0,110480.0,0.19331899]
[1756195154082,0.78381612,110500.0,110490.0,0.00537]
[1756195154861,0.78381612,110500.0,110480.0,0.19331899]
[1756195154862,0.18101185,110490.0,110480.0,0.19331899]
[1756195155060,0.7819125,110490.0,110480.0,0.19544899]
[1756195155267,0.18101185,110490.0,110480.0,0.19544899]
[1756195155819,0.78189612,110500.0,110480.0,0.19544899]
[1756195156235,0.60090065,110490.0,110480.0,0.19544899]
[1756195156438,0.78189612,110500.0,110480.0,0.19544899]
[1756195156916,0.78189612,110500.0,110480.0,0.19744899]
[1756195157331,0.78189612,110500.0,110480.0,0.20044899]
[1756195157568,0.18293185,110490.0,110480.0,0.19844899]
[1756195157777,0.18101185,110490.0,110480.0,0.19844899]
[1756195158293,0.71933949,110500.0,110480.0,0.19844899]
[1756195158404,0.18101185,110490.0,110480.0,0.19844899]
[1756195158610,0.18101185,110490.0,110480.0,0.20044899]
[1756195158828,0.71933949,110500.0,110480.0,0.20044899]
[1756195159023,0.73623209,110500.0,110480.0,0.20044899]
[1756195159632,0.73623209,110500.0,110480.0,0.19544899]
[1756195159836,0.14868887,110500.0,110490.0,0.00324]
[1756195160136,0.89291209,110500.0,110490.0,0.00324]
[1756195160311,0.90136162,110500.0,110490.0,0.00324]
[1756195160530,0.18101185,110490.0,110480.0,0.19107899]
[1756195160725,0.18101185,110490.0,110480.0,0.19644899]
[1756195160955,0.18101185,110490.0,110480.0,0.19844899]
[1756195161176,0.18109185,110490.0,110480.0,0.002]
[1756195161619,0.79400187,110490.0,110480.0,0.002]
[1756195162035,0.79400205,110490.0,110480.0,0.002]
[1756195162251,0.78554645,110490.0,110480.0,0.002]
[1756195162462,0.79400214,110490.0,110480.0,0.002]
[1756195163359,0.20645892,110490.0,110480.0,0.19139824]
[1756195163582,0.02536707,110490.0,110480.0,0.19139824]
[1756195164265,0.02537483,110490.0,110480.0,0.19139824]
[1756195164481,0.01691138,110490.0,110480.0,0.19139824]
[1756195165131,0.01691138,110490.0,110480.0,0.87040348]
[1756195165596,0.01691138,110490.0,110480.0,0.28286026]
[1756195166729,0.02538329,110490.0,110480.0,0.28286026]
[1756195166964,0.01691138,110490.0,110480.0,0.28286026]
[1756195167395,0.02538658,110490.0,110480.0,0.28286026]
[1756195168458,0.0084752,110490.0,110480.0,0.28286026]
[1756195169294,0.02544775,110490.0,110480.0,0.28286026]
[1756195170546,0.0084752,110490.0,110480.0,0.28286026]
[1756195171151,0.18099579,110500.0,110490.0,0.18101185]
[1756195171323,0.22601094,110500.0,110490.0,0.33952185]
[1756195171535,0.22601094,110500.0,110490.0,0.34275185]
[1756195171750,0.22601947,110500.0,110490.0,0.34275185]
[1756195171913,0.22602373,110500.0,110490.0,0.34275185]
[1756195172509,0.22602373,110500.0,110490.0,0.34575185]
[1756195173830,0.22602373,110500.0,110490.0,0.34475185]
[1756195174056,0.22602373,110500.0,110490.0,0.34275185]
[1756195174244,0.22602373,110500.0,110490.0,0.34475185]
[1756195175379,0.22602373,110500.0,110490.0,0.34775185]
[1756195177619,0.81356695,110500.0,110490.0,0.34775185]
[1756195178545,0.04502794,110500.0,110490.0,0.34775185]
[1756195178681,0.20904214,110500.0,110490.0,0.34775185]
[1756195178887,0.79658536,110500.0,110490.0,0.34775185]
[1756195179297,0.8105381,110500.0,110490.0,0.34775185]
[1756195179502,0.8124581,110500.0,110490.0,0.34775185]
[1756195179716,0.8105381,110500.0,110490.0,0.34775185]
[1756195180901,0.81053733,110500.0,110490.0,0.34775185]
[1756195183213,0.81053733,110500.0,110490.0,0.19119185]
[1756195183387,0.81053733,110500.0,110490.0,0.34775185]
[1756195184055,0.81053714,110500.0,110490.0,0.34775185]
[1756195184490,0.81053714,110500.0,110490.0,0.01018]
[1756195184686,0.81245714,110500.0,110490.0,0.16152]
[1756195186457,0.81245714,110500.0,110490.0,0.34576185]
[1756195186872,0.81245714,110500.0,110490.0,0.34771185]
[1756195187051,0.81245714,110500.0,110490.0,0.16475]
[1756195187248,0.21096118,110500.0,110490.0,0.16152]
[1756195187467,0.81245714,110500.0,110490.0,0.16152]
[1756195188026,0.81245714,110500.0,110490.0,0.005]
[1756195188227,0.81245714,110500.0,110490.0,0.16152]
[1756195189377,0.7929011,110500.0,110490.0,0.16152]
[1756195190421,0.78441143,110500.0,110490.0,0.16152]
[1756195190639,0.7929014,110500.0,110490.0,0.16475]
[1756195193053,0.7929014,110500.0,110490.0,0.16152]
[1756195193516,0.7929014,110500.0,110490.0,0.16475]
[1756195193951,0.7929014,110500.0,110490.0,0.16152]
[1756195194875,0.7929014,110500.0,110490.0,0.16475]
[1756195195282,0.7929014,110500.0,110490.0,0.16152]
[1756195195944,0.7929014,110500.0,110490.0,0.005]
[1756195196155,0.7941014,110500.0,110490.0,0.005]
[1756195196548,0.8201154,110500.0,110490.0,0.005]
[1756195196899,0.82012133,110500.0,110490.0,0.005]
[1756195197530,0.82012133,110500.0,110490.0,0.00805]
[1756195197737,0.97660133,110500.0,110490.0,0.01012]
[1756195198170,0.97660133,110500.0,110490.0,0.00805]
[1756195198383,0.21862537,110500.0,110490.0,0.01012]
[1756195198577,0.97660133,110500.0,110490.0,0.01012]
[1756195198965,0.81820133,110500.0,110490.0,0.19113185]
[1756195199169,0.79098733,110500.0,110490.0,0.19113185]
[1756195199940,0.79106733,110500.0,110490.0,0.01012]
[1756195200154,0.78257143,110500.0,110490.0,0.00805]
[1756195200549,0.78257143,110500.0,110490.0,0.01012]
[1756195201143,0.79106578,110500.0,110490.0,0.01012]
[1756195201581,0.00849435,110500.0,110490.0,0.19339449]
[1756195201797,0.00849435,110500.0,110490.0,0.19113185]
[1756195202075,0.7916534,110510.0,110490.0,0.28259387]
[1756195202363,0.80014696,110510.0,110500.0,0.16179244]
[1756195202581,0.80014696,110510.0,110500.0,0.1616]
[1756195202787,0.80014696,110510.0,110500.0,0.34259547]
[1756195202997,0.80014696,110510.0,110500.0,0.1616]
[1756195203211,0.80921931,110510.0,110500.0,0.00512]
[1756195203416,0.18099547,110500.0,110490.0,0.16153]
[1756195203620,0.78258143,110500.0,110490.0,0.004]
[1756195203837,0.94755457,110500.0,110490.0,0.00705]
[1756195204042,0.94755457,110500.0,110490.0,0.002]
[1756195204449,0.94755457,110500.0,110490.0,0.00512]
[1756195204450,0.18948861,110500.0,110490.0,0.00512]
[1756195204686,0.78249143,110500.0,110490.0,0.18839449]
[1756195204904,0.78249143,110500.0,110490.0,0.18613185]
[1756195205119,0.79098459,110500.0,110490.0,0.18613185]
[1756195205340,0.8188654,110510.0,110500.0,0.18099547]
[1756195205545,0.82735809,110510.0,110500.0,0.15648]
[1756195205747,0.82735809,110510.0,110500.0,0.1616]
[1756195205947,0.18099547,110500.0,110490.0,0.27552387]
[1756195206099,0.78249143,110500.0,110490.0,0.43707387]
[1756195206301,0.78249143,110500.0,110490.0,0.43907387]
[1756195206706,0.60149596,110500.0,110490.0,0.43907387]
[1756195206907,0.60149596,110500.0,110490.0,0.43407387]
[1756195207335,0.0001294,110510.0,110500.0,0.18099547]
[1756195207536,0.00862173,110510.0,110500.0,0.27452749]
[1756195207750,0.00862173,110510.0,110500.0,0.27757749]
[1756195207975,0.00862173,110510.0,110500.0,0.34717749]
[1756195208169,0.79301678,110510.0,110500.0,0.16156]
[1756195208391,0.79301678,110510.0,110490.0,0.34350057]
[1756195208596,0.60149596,110500.0,110490.0,0.43191259]
[1756195208804,0.18110849,110510.0,110490.0,0.43598259]
[1756195209012,0.60149596,110500.0,110490.0,0.43598259]
[1756195209343,0.18960022,110510.0,110500.0,0.18099547]
[1756195209344,0.78260445,110510.0,110500.0,0.18099547]
[1756195209564,0.78260445,110510.0,110500.0,0.09353202]
[1756195209768,0.78260445,110510.0,110500.0,0.25302202]
[1756195209995,0.78260445,110510.0,110500.0,0.24790202]
[1756195209996,0.79301449,110510.0,110500.0,0.24790202]
[1756195210210,0.79301449,110510.0,110500.0,0.25302202]
[1756195210426,0.79301449,110510.0,110500.0,0.25502202]
[1756195210867,0.18099547,110500.0,110490.0,0.18606185]
[1756195211073,0.78249143,110500.0,110490.0,0.43603387]
[1756195211617,0.78249143,110500.0,110490.0,0.43403387]
[1756195211820,0.60149596,110500.0,110490.0,0.43403387]
[1756195212830,0.78249143,110500.0,110490.0,0.27959387]
[1756195213007,0.78249143,110500.0,110490.0,0.43603387]
[1756195213219,0.78249143,110500.0,110490.0,0.43903387]
[1756195214095,0.78441143,110500.0,110490.0,0.005]
[1756195214306,0.78441143,110500.0,110490.0,0.16144]
[1756195214526,0.78561143,110500.0,110490.0,0.005]
[1756195214801,0.79409997,110500.0,110490.0,0.005]
[1756195215238,0.82131197,110500.0,110490.0,0.005]
[1756195216609,0.84086759,110500.0,110490.0,0.005]
[1756195216844,1.48490773,110500.0,110490.0,0.005]
[1756195217065,1.89716838,110500.0,110490.0,0.002]
[1756195217316,1.29567242,110500.0,110490.0,0.002]
[1756195217744,0.18102824,110480.0,110470.0,0.34053323]
[1756195217968,0.18102824,110480.0,110470.0,0.34260462]
[1756195217969,0.7825242,110480.0,110470.0,0.34260462]
[1756195218182,0.7825242,110480.0,110470.0,0.33955462]
[1756195218840,0.7825242,110480.0,110470.0,0.34260462]
[1756195219057,0.18102824,110480.0,110470.0,0.34460462]
[1756195219282,0.7825242,110480.0,110470.0,0.34460462]
[1756195219505,0.60149596,110480.0,110470.0,0.43606664]
[1756195219695,0.60149596,110480.0,110470.0,0.43906664]
[1756195220536,0.18102824,110480.0,110470.0,0.10158202]
[1756195220769,0.60149596,110480.0,110470.0,0.44132969]
[1756195220993,0.80973753,110490.0,110480.0,0.18102824]
[1756195221210,0.80973753,110490.0,110480.0,0.18614824]
[1756195221419,0.80973753,110490.0,110480.0,0.00512]
[1756195221658,0.18102824,110480.0,110470.0,0.43394664]
[1756195221838,0.7825242,110480.0,110470.0,0.43364748]
[1756195222083,0.7825242,110480.0,110470.0,0.43571748]
[1756195222295,0.7825242,110480.0,110470.0,0.43876748]
[1756195222540,0.7825242,110480.0,110470.0,0.43706664]
[1756195223165,0.7825242,110480.0,110470.0,0.43406664]
[1756195223759,0.60149596,110480.0,110470.0,0.43406664]
[1756195224103,0.60149596,110480.0,110470.0,0.43706664]
[1756195224387,0.60149596,110480.0,110470.0,0.43906664]
[1756195224810,0.61048958,110480.0,110470.0,0.43906664]
[1756195225353,0.60149596,110480.0,110470.0,0.43906664]
[1756195225566,0.60222645,110480.0,110470.0,0.43906664]
[1756195226525,0.60149596,110480.0,110470.0,0.43833615]
[1756195228156,0.7825242,110480.0,110470.0,0.43833615]
[1756195228347,0.20824157,110490.0,110480.0,0.18102824]
[1756195228348,0.03620449,110490.0,110480.0,0.18102824]
[1756195228562,0.61048545,110490.0,110480.0,0.27449026]
[1756195228784,0.61048545,110490.0,110480.0,0.27755026]
[1756195229406,0.7914973,110490.0,110480.0,0.27755026]
[1756195229899,1.1314973,110490.0,110480.0,0.27755026]
[1756195230325,0.95048545,110490.0,110480.0,0.27955026]
[1756195230461,1.1314973,110490.0,110480.0,0.27955026]
[1756195230982,1.1314973,110490.0,110480.0,0.28055026]
[1756195231562,0.61048545,110490.0,110480.0,0.28055026]
[1756195231786,0.7914973,110490.0,110480.0,0.28055026]
[1756195232201,0.7934173,110490.0,110480.0,0.28055026]
[1756195232417,0.7914973,110490.0,110480.0,0.28055026]
[1756195233245,0.7934173,110490.0,110480.0,0.09952202]
[1756195233470,0.7934173,110490.0,110480.0,0.43699026]
[1756195233676,0.7934173,110490.0,110480.0,0.43499026]
[1756195233994,0.7934173,110490.0,110480.0,0.09752202]
[1756195234212,0.7934173,110490.0,110480.0,0.25396202]
[1756195234446,0.7934173,110490.0,110480.0,0.43499026]
[1756195234623,0.76124338,110490.0,110480.0,0.43699026]
[1756195234827,0.78442781,110490.0,110480.0,0.43699026]
[1756195235077,0.79362013,110490.0,110480.0,0.43699026]
[1756195236102,0.19212417,110490.0,110480.0,0.25596202]
[1756195236367,0.79362013,110490.0,110480.0,0.43699026]
[1756195236878,0.78442781,110490.0,110480.0,0.43699026]
[1756195237259,0.78250781,110490.0,110480.0,0.43699026]
[1756195238067,0.22625515,110500.0,110480.0,0.43699026]
[1756195238269,0.60149596,110490.0,110480.0,0.43699026]
[1756195238625,0.78250781,110490.0,110480.0,0.43699026]
[1756195239121,0.60149596,110490.0,110480.0,0.43699026]
[1756195239266,0.78250781,110490.0,110480.0,0.43699026]
[1756195239685,0.60149596,110490.0,110480.0,0.43599026]
[1756195240383,1.12260445,110510.0,110500.0,0.18099547]
[1756195240588,0.79108621,110510.0,110500.0,0.34245547]
[1756195240794,1.13116621,110510.0,110500.0,0.34045547]
[1756195241002,1.13116621,110510.0,110500.0,0.1564]
[1756195241207,1.13116621,110510.0,110500.0,0.34045547]
[1756195242013,1.13116621,110510.0,110500.0,0.34245547]
[1756195242502,0.52959025,110510.0,110500.0,0.34245547]
[1756195242704,1.12360445,110510.0,110500.0,0.34245547]
[1756195242917,1.13275326,110510.0,110500.0,0.34245547]
[1756195243329,1.13275326,110510.0,110500.0,0.43391749]
[1756195243330,0.60262536,110510.0,110500.0,0.43391749]
[1756195243540,0.0011294,110510.0,110500.0,0.43391749]
[1756195243745,0.60262536,110510.0,110500.0,0.43391749]
[1756195243977,0.60162536,110510.0,110500.0,0.43391749]
[1756195244316,0.0001294,110510.0,110500.0,0.43391749]
[1756195244526,0.60162536,110510.0,110500.0,0.43391749]
[1756195244946,0.60162536,110510.0,110500.0,0.43491749]
[1756195245162,0.0001294,110510.0,110500.0,0.43491749]
[1756195245578,0.60162536,110510.0,110500.0,0.43491749]
[1756195248111,0.60162536,110510.0,110500.0,0.27851749]
[1756195248352,0.60162536,110510.0,110500.0,0.43487749]
[1756195248561,0.0001294,110510.0,110500.0,1.03637345]
[1756195248994,0.0001294,110510.0,110500.0,0.43487749]
[1756195249218,0.0001294,110510.0,110500.0,1.03637345]
[1756195249658,0.0001294,110510.0,110500.0,1.06257545]
[1756195250507,0.0001294,110510.0,110500.0,1.06657545]
[1756195250937,0.0001294,110510.0,110500.0,1.06257545]
[1756195251356,0.0001294,110510.0,110500.0,1.06557545]
[1756195251552,0.0001294,110510.0,110500.0,1.06857545]
[1756195252023,0.0001294,110510.0,110500.0,1.23602447]
[1756195253996,0.0001294,110510.0,110500.0,1.23598447]
[1756195255753,0.0001294,110510.0,110500.0,0.63448851]
[1756195255904,0.0001294,110510.0,110500.0,1.23598447]
[1756195258131,0.0001294,110510.0,110500.0,1.84468447]
[1756195258347,1e-08,110510.0,110500.0,2.29468447]
[1756195258559,1e-08,110510.0,110500.0,2.91220447]
[1756195259002,1e-08,110510.0,110500.0,2.64350447]
[1756195259439,1e-08,110510.0,110500.0,2.90920447]
[1756195259650,1e-08,110510.0,110500.0,3.10920447]
[1756195260082,1e-08,110510.0,110500.0,3.11020447]
[1756195260631,1e-08,110510.0,110500.0,3.10620447]
[1756195260981,1e-08,110510.0,110500.0,3.11220447]
[1756195261800,1e-08,110510.0,110500.0,3.11720447]
[1756195263122,1e-08,110510.0,110500.0,2.96088447]
[1756195263327,1e-08,110510.0,110500.0,3.11216447]
[1756195264051,1e-08,110510.0,110500.0,2.96188447]
[1756195264293,1e-08,110510.0,110500.0,3.11816447]
[1756195264532,1e-08,110510.0,110500.0,2.96188447]
[1756195264756,1e-08,110510.0,110500.0,2.84946447]
[1756195265650,1e-08,110510.0,110500.0,2.84942447]
[1756195268667,1e-08,110510.0,110500.0,2.24792851]
[1756195268885,1e-08,110510.0,110500.0,2.84942447]
[1756195270669,1e-08,110510.0,110500.0,3.11812447]
[1756195271758,1e-08,110510.0,110500.0,3.26812447]
[1756195272000,0.0012,110560.0,110550.0,0.18091361]
[1756195272221,0.0012,110560.0,110550.0,0.42857563]
[1756195272222,0.0311139,110560.0,110550.0,0.42857563]
[1756195272434,0.81350711,110560.0,110550.0,0.42857563]
[1756195272658,0.63260986,110560.0,110550.0,0.42857563]
[1756195273396,0.63260986,110560.0,110550.0,0.42957563]
[1756195273824,0.63360986,110560.0,110550.0,0.42957563]
[1756195274594,0.63360986,110560.0,110550.0,0.27337563]
[1756195274819,0.6251636,110560.0,110550.0,0.42957563]
[1756195275033,0.63361394,110560.0,110550.0,0.42957563]
[1756195275381,0.63361562,110560.0,110550.0,0.42957563]
[1756195275775,0.03091966,110560.0,110550.0,0.42957563]
[1756195276264,0.63361562,110560.0,110550.0,0.27337563]
[1756195276472,0.03091966,110560.0,110550.0,0.76957563]
[1756195276649,0.03211966,110560.0,110550.0,0.61337563]